fUSD/lending_fUSD_20241029
["ID","MTS","AMOUNT","RATE_DAILY","PERIOD"]
[340983114,1730209840879,-227.6740055,0.00043591,2]
[340983116,1730209840891,-150.0,0.00043592,2]
[340983119,1730209840904,-150.0,0.00043597,2]
[340983121,1730209840916,-2000.0,0.00043599,2]
[340983123,1730209840928,-5065.55,0.00043599,120]
[340983125,1730209840941,-153.0,0.00043599,7]
[340983128,1730209840953,-23044.42001177,0.00043599,2]
[340983131,1730209840974,-319.90248623,0.00043599,2]
[340983134,1730209840989,-8485.12528309,0.00043599,2]
[340983139,1730209841004,-1445.68957979,0.00043599,2]
[340983142,1730209841019,-1269.27147095,0.00043599,2]
[340983144,1730209841034,-373.58102438,0.00043599,2]
[340983187,1730209843944,-332.16296021,0.000411,2]
[340983188,1730209843955,-769.23569981,0.00043599,2]
[340983195,1730209846360,-1336.99134343,0.00043599,2]
[340983196,1730209846372,-8584.68,0.00043599,2]
[340983197,1730209846385,-714.445044,0.00043599,2]
[340983202,1730209846437,-797.50039743,0.000434,15]
[340983203,1730209846517,-202.49960257,0.000434,15]
[340983204,1730209846527,-3656.65805655,0.00043599,2]
[340983205,1730209846537,-3024.43637922,0.00043599,3]
[340983206,1730209846549,-18803.81051508,0.00043599,3]
[340983207,1730209846724,-1674.016973,0.00043599,3]
[340983215,1730210165429,150.0,0.00015342,2]
[340983216,1730210165452,11.71,0.00015342,2]
[340983217,1730210403414,150.0,0.0001726,2]
[340983218,1730210403437,150.0,0.0001726,2]
[340983219,1730210403462,103.87586623,0.0001726,2]
[340983220,1730210692738,150.0,0.00015342,2]
[340983221,1730210692761,7.64,0.00015342,2]
[340983264,1730210912401,10000.0,0.00039,30]
[340983296,1730211031658,-150.0,0.00017589,2]
[340983297,1730211031668,-209.97351,0.00032975,2]
[340983298,1730211031680,-325.87024,0.00032975,2]
[340983299,1730211031689,-411.33158513,0.00037952,2]
[340983300,1730211031700,-9809.61562795,0.00037952,2]
[340983301,1730211031712,-1437.64,0.00037952,2]
[340983302,1730211031736,-7913.94511268,0.00037952,2]
[340983303,1730211031746,-181.99,0.00038052,2]
[340983304,1730211031755,-428.71,0.00038602,2]
[340983305,1730211031765,-3253.0,0.00039,2]
[340983306,1730211031775,-13937.00995425,0.00039088,2]
[340983307,1730211031785,-598.93742,0.00039088,7]
[340983308,1730211031798,-598.93742,0.00039288,7]
[340983309,1730211031809,-598.93742,0.00039488,7]
[340983310,1730211031819,-2437.9,0.000396,2]
[340983311,1730211031829,-2500.0,0.00039652,2]
[340983312,1730211031839,-598.93742,0.00039688,7]
[340983313,1730211031850,-172.52,0.00039783,120]
[340983314,1730211031860,-427.22,0.0003989,2]
[340983315,1730211031871,-571.0,0.00039957,2]
[340983316,1730211031882,-250.0,0.00039969,120]
[340983317,1730211031892,-200.0,0.00039991,2]
[340983318,1730211031902,-23900.0,0.00040005,2]
[340983319,1730211031913,-2131.39,0.00040016,2]
[340983320,1730211031924,-250.0,0.00040055,2]
[340983321,1730211031935,-1140.26,0.00040055,2]
[340983322,1730211031945,-150.0,0.00040069,7]
[340983323,1730211031956,-598.93742,0.00040088,7]
[340983324,1730211031966,-154.17,0.0004012,120]
[340983325,1730211031976,-598.93742,0.00040288,7]
[340983326,1730211031986,-176.289,0.000403,57]
[340983327,1730211031996,-535.84375,0.00040472,14]
[340983328,1730211032006,-598.93742,0.00040488,7]
[340983329,1730211032018,-800.0,0.00040495,2]
[340983330,1730211032027,-1365.65,0.00040614,2]
[340983331,1730211032036,-598.93742,0.00040688,7]
[340983332,1730211032054,-3184.0,0.000407,3]
[340983333,1730211032064,-428.71,0.00040866,2]
[340983334,1730211032073,-2674.19,0.00041033,2]
[340983335,1730211032083,-25000.0,0.00041064,2]
[340983336,1730211032092,-2502.2914168,0.00041082,2]
[340983337,1730211032104,-898.95587675,0.00041082,2]
[340983338,1730211032129,-1598.75270645,0.00041082,2]
[340983339,1730211032138,-4431.33,0.00041091,2]
[340983340,1730211032147,-5000.0,0.00041095,2]
[340983341,1730211032156,-150.0,0.00041096,2]
[340983342,1730211032166,-1439.04115355,0.000411,2]
[340983343,1730211032175,-1710.27614,0.00041146,2]
[340983344,1730211032217,-3289.72386,0.00041146,2]
[340983345,1730211032226,-204.17,0.00041152,2]
[340983346,1730211032235,-5000.0,0.00041221,2]
[340983347,1730211032244,-5000.0,0.00041237,2]
[340983348,1730211032253,-4708.81,0.00041296,2]
[340983349,1730211032262,-8137.3333237,0.000413,5]
[340983350,1730211035619,-450.0,0.00040288,7]
[340983352,1730211035628,-71.76,0.000413,5]
[340983366,1730211037642,-1000.0,0.00040614,2]
[340983367,1730211037652,-3325.24,0.000413,5]
[340983368,1730211037662,-4371.77601337,0.00041397,2]
[340983369,1730211037815,-628.22398663,0.00041397,2]
[340983370,1730211037825,-89.12601337,0.000415,15]
[340983371,1730211037837,-210.87398663,0.000415,15]
[340983372,1730211037846,-686.07601337,0.000415,7]
[340983373,1730211037917,-371.92398663,0.000415,7]
[340983374,1730211037927,-600.0,0.000416,15]
[340983375,1730211037936,-1860.57,0.00041677,2]
[340983376,1730211037945,-5000.0,0.00041682,2]
[340983377,1730211037955,-1000.0,0.000417,15]
[340983378,1730211037964,-1890.53,0.00041701,2]
[340983379,1730211037973,-674.16372015,0.00041727,15]
[340983380,1730211037982,-5000.0,0.00041734,2]
[340983381,1730211037991,-5000.0,0.00041769,2]
[340983382,1730211038000,-1300.0,0.000418,15]
[340983383,1730211038010,-4331.17,0.00041809,2]
[340983384,1730211038019,-1726.84229322,0.00041827,2]
[340983385,1730211038031,-1621.8334,0.00041827,2]
[340983386,1730211038317,-1651.32430678,0.00041827,2]
[340983387,1730211038326,-7884.46794701,0.00041828,2]
[340983388,1730211038342,-1000.0,0.00040688,7]
[340983389,1730211038353,-8867.46205299,0.00041828,2]
[340983390,1730211038365,-5000.0,0.00041848,2]
[340983391,1730211038374,-519.26,0.00041874,2]
[340983392,1730211038384,-398.3782,0.00041899,2]
[340983393,1730211038394,-464.54194798,0.000419,2]
[340983394,1730211038403,-185.13112361,0.000419,2]
[340983395,1730211038413,-99.15684845,0.000419,15]
[340983396,1730211038490,-299.23607413,0.000419,15]
[340983397,1730211038502,-1201.60707742,0.000419,15]
[340983398,1730211038511,-190.44,0.00041903,120]
[340983399,1730211038521,-674.1637201,0.00041924,15]
[340983400,1730211038531,-1577.75,0.00041933,2]
[340983401,1730211038539,-3493.07127531,0.0004195,2]
[340983411,1730211039772,-263.535,0.00041033,2]
[340983412,1730211039784,-736.465,0.00041033,2]
[340983413,1730211039794,-2493.83818,0.0004195,2]
[340983414,1730211039811,-2710.49021726,0.0004195,2]
[340983415,1730211039823,-3094.112,0.0004195,2]
[340983416,1730211039904,-959.28971313,0.0004195,2]
[340983417,1730211039915,-405.56797213,0.0004195,2]
[340983418,1730211039929,-359.76661618,0.0004195,2]
[340983419,1730211039941,-11483.86402599,0.0004195,2]
[340983420,1730211039951,-159.711936,0.00041973,10]
[340983421,1730211039961,-60024.55024319,0.00041998,2]
[340983422,1730211040037,-517.05572612,0.00041998,2]
[340983423,1730211040054,-166560.37607527,0.00041998,2]
[340983424,1730211040065,-435.273,0.00041998,2]
[340983636,1730211042635,-377.05015723,0.00041998,2]
[340983639,1730211042647,-5508.76973328,0.00041998,2]
[340983641,1730211042658,-1431.44,0.00041998,2]
[340983651,1730211042743,-1000.0,0.000411,2]
[340983653,1730211042752,-3957.20835753,0.00041998,2]
[340983655,1730211042764,-14364.48239999,0.00041998,2]
[340983679,1730211042982,-281011.67939535,0.00041998,2]
[340983681,1730211042992,-38245.08968986,0.00041998,2]
[340983683,1730211043002,-4854.48,0.00041999,120]
[340983685,1730211043011,-9800.0,0.00042,120]
[340983687,1730211043022,-105269.35559592,0.00042,2]
[340983692,1730211043062,-374.48745493,0.00042,2]
[340983945,1730211045645,-665.6772156,0.00042,2]
[340983947,1730211045658,-768.19220448,0.00042,2]
[340983949,1730211045670,-345.4439581,0.00042,2]
[340983951,1730211045681,-312.29169,0.00042,2]
[340983957,1730211045746,-442.3675651,0.00042,2]
[340983959,1730211045768,-1319.6,0.00042,2]
[340983961,1730211045780,-1399.10689924,0.00042,2]
[340983970,1730211045878,-17218.0182306,0.00042,2]
[340983973,1730211045905,-26073.57665536,0.00042,2]
[340983978,1730211045956,-475744.9192724,0.00042,2]
[340983980,1730211045971,-274921.47561298,0.00042,2]
[340983983,1730211045998,-95145.48764529,0.00042,2]
[340983985,1730211046009,-674.1637201,0.00042121,15]
[340983987,1730211046019,-150.0,0.00042177,2]
[340983989,1730211046029,-449.44871221,0.00042205,2]
[340983990,1730211046039,-5798.163127,0.00042259,4]
[340983992,1730211046050,-262220.79083652,0.00042262,4]
[340983994,1730211046060,-6977.78514621,0.00042263,4]
[340983995,1730211046068,-517.43488342,0.00042273,10]
[340983997,1730211046078,-498.69464296,0.00042273,10]
[340983999,1730211046087,-500.0,0.00042273,10]
[340984001,1730211046096,-500.0,0.00042273,10]
[340984003,1730211046106,-262220.79083652,0.00042295,4]
[340984004,1730211046116,-24805.73451337,0.000423,2]
[340984103,1730211107806,1734.3031,0.00032875,120]
[340984292,1730211188773,-150.0,0.00017264,2]
[340984546,1730211283376,154.45,0.00015342,2]
[340984547,1730211303167,150.0,0.00014073,2]
[340984548,1730211303190,9.7397046,0.00014073,2]
[340984686,1730211912058,-2060.55736754,0.00016,2]
[340984687,1730211912554,-299.23607413,0.00016,2]
[340984688,1730211913033,-1000.0,0.00016,2]
[340984689,1730211913469,-150.0,0.00016,2]
[340984690,1730211914153,-150.0,0.00016,2]
[340984691,1730211930068,517.0,0.000101,2]
[340984692,1730211930090,150.0,0.000101,2]
[340984693,1730211930111,150.0,0.000101,2]
[340984694,1730211930132,150.0,0.000101,2]
[340984695,1730211930152,150.0,0.000101,2]
[340984696,1730211930173,150.0,0.000101,2]
[340984697,1730211930194,150.0,0.000101,2]
[340984698,1730211930213,150.0,0.000101,2]
[340984699,1730211930233,150.0,0.000101,2]
[340984700,1730211930257,150.0,0.000101,2]
[340984701,1730211930278,150.0,0.000101,2]
[340984702,1730211930422,150.0,0.000101,2]
[340984703,1730211930444,150.0,0.000101,2]
[340984704,1730211930466,150.0,0.000101,2]
[340984705,1730211930488,150.0,0.000101,2]
[340984706,1730211930519,7564.8791565,0.000101,2]
[340984717,1730211956456,1050.0,6.94e-05,2]
[340984718,1730211964051,150.0,9e-05,2]
[340984719,1730211964075,11.54912863,9e-05,2]
[340984720,1730211998531,150.0,0.00015101,2]
[340984723,1730212055554,-150.0,0.00015292,2]
[340984726,1730212075964,320.82154712,0.00022,120]
[340984728,1730212113158,250.0,0.00034264,120]
[340984730,1730212126077,373.02108111,0.00025,60]
[340984731,1730212129966,94080.33467948,0.000389,30]
[340984749,1730212231795,-575.83803792,0.0001537,2]
[340984752,1730212231807,-692.70000002,0.0001537,2]
[340984765,1730212231902,-5610.46196206,0.0001537,2]
[340984766,1730212231911,-150.0,0.00015663,2]
[340984767,1730212231920,-196.17454892,0.000157,2]
[340984768,1730212231929,-400.0,0.000158,5]
[340984769,1730212231939,-6321.61203922,0.000159,2]
[340984770,1730212231948,-800.0,0.000159,5]
[340984771,1730212231957,-16732.98239637,0.000159,2]
[340984772,1730212231966,-150.0,0.00015972,2]
[340984773,1730212231976,-159.79892726,0.00015973,2]
[340984774,1730212231985,-159.80156448,0.00015973,2]
[340984775,1730212231995,-159.80156448,0.00015973,2]
[340984776,1730212232004,-500.0,0.00015973,2]
[340984777,1730212232013,-199.73395633,0.0001599,2]
[340984778,1730212232022,-1000.0,0.00015999,2]
[340984779,1730212232031,-257.37577898,0.00015999,2]
[340984780,1730212232041,-1267628.83387088,0.00016,2]
[340984781,1730212232050,-861.3,0.00016,2]
[340984782,1730212232060,-169.01996703,0.00016205,2]
[340984783,1730212232069,-156.91,0.00016712,2]
[340984784,1730212232079,-1087.67692618,0.00019008,2]
[340984785,1730212232088,-1926.13,0.00019108,5]
[340984786,1730212232097,-557.11,0.00019108,2]
[340984787,1730212232106,-187.06,0.00019108,2]
[340984788,1730212232116,-150.99,0.00019109,2]
[340984789,1730212232125,-6268.75540841,0.0002,2]
[340984790,1730212232134,-237.29101946,0.0002,5]
[340984791,1730212232143,-169.01996698,0.0002168,2]
[340984792,1730212232253,-1087.67692616,0.00021738,2]
[340984793,1730212232266,-836.0306014,0.00022,5]
[340984794,1730212232276,-1087.67692616,0.00024469,2]
[340984795,1730212232286,-1073.0,0.000268,3]
[340984796,1730212232295,-169.01996698,0.00027155,2]
[340984797,1730212232305,-1087.67692616,0.00027199,2]
[340984798,1730212232314,-1000.0,0.00029829,2]
[340984799,1730212232323,-1087.67692616,0.00029929,15]
[340984800,1730212232332,-532.36,0.0003103,2]
[340984801,1730212232342,-696.96,0.00031681,2]
[340984802,1730212232351,-150.0,0.00031697,2]
[340984803,1730212232361,-281.081,0.00032253,2]
[340984804,1730212232370,-169.01996698,0.00032631,2]
[340984805,1730212232379,-1087.67692616,0.0003266,15]
[340984806,1730212232389,-565.4,0.00033266,2]
[340984807,1730212232398,-532.36,0.00033293,2]
[340984808,1730212232407,-500.0,0.00034121,2]
[340984809,1730212232416,-1087.67692616,0.0003539,15]
[340984810,1730212232425,-532.36,0.00035557,2]
[340984811,1730212232434,-1065.69,0.00035912,2]
[340984812,1730212232443,-150.0,0.00036455,7]
[340984813,1730212232452,-10186.24,0.00036867,2]
[340984814,1730212232463,-250.0,0.00037047,2]
[340984815,1730212232472,-2218.0,0.0003748,2]
[340984816,1730212232481,-532.36,0.00037821,2]
[340984817,1730212232490,-169.01996698,0.00038106,2]
[340984818,1730212232499,-1087.67692616,0.0003812,15]
[340984819,1730212232508,-3074.99,0.00038197,2]
[340984820,1730212232517,-1111.12,0.00039423,2]
[340984821,1730212232527,-4253.06,0.00039441,2]
[340984822,1730212232535,-155.61,0.00039484,2]
[340984823,1730212232545,-200.0,0.00039552,2]
[340984824,1730212232554,-160.0,0.00039635,2]
[340984825,1730212232563,-477.79,0.00039721,2]
[340984826,1730212232572,-190.44,0.00039826,120]
[340984827,1730212232581,-281.081,0.00039904,2]
[340984828,1730212232591,-14709.66452741,0.0004,120]
[340984829,1730212232600,-90168.5255317,0.0004,30]
[340984830,1730212232609,-8305.12,0.00040036,2]
[340984831,1730212232618,-157.82,0.00040079,2]
[340984832,1730212232627,-532.36,0.00040085,2]
[340984833,1730212232637,-154.17,0.00040086,120]
[340984834,1730212232646,-165.4,0.00040198,2]
[340984835,1730212232655,-440.495,0.00040272,57]
[340984836,1730212232664,-170.831,0.00040272,57]
[340984837,1730212232674,-840.0,0.00040329,2]
[340984838,1730212232683,-159.23,0.00040331,2]
[340984839,1730212232692,-194.04,0.00040555,120]
[340984840,1730212232701,-152.0,0.00040826,3]
[340984841,1730212232712,-1087.67692616,0.00040851,15]
[340984842,1730212232721,-80940.63012127,0.000409,2]
[340984843,1730212232730,-150.0,0.0004103,2]
[340984844,1730212232739,-150.0,0.00041041,2]
[340984845,1730212232749,-167.0,0.0004105,2]
[340984846,1730212232759,-150.0,0.00041059,2]
[340984847,1730212232768,-150.0,0.00041096,2]
[340984848,1730212232777,-1092.8039,0.00041137,2]
[340984849,1730212232790,-150.0,0.00041169,2]
[340984850,1730212232800,-8515.6098,0.000412,2]
[340984851,1730212232809,-5653.2086,0.000412,2]
[340984852,1730212232818,-1282.3176,0.00041206,2]
[340984853,1730212232829,-1071.7215,0.00041206,2]
[340984854,1730212232839,-7884.47,0.00041306,2]
[340984855,1730212232849,-215.5287,0.00041358,2]
[340984856,1730212232859,-150.0,0.00041487,2]
[340984857,1730212232868,-2500.0,0.00041507,2]
[340984858,1730212232878,-1651.32,0.00041614,2]
[340984859,1730212232887,-73690.1651,0.00041634,2]
[340984860,1730212232900,-1000.0,0.00041634,2]
[340984861,1730212232909,-150.0,0.00041636,2]
[340984862,1730212232918,-2692.65,0.00041669,2]
[340984863,1730212232927,-1200.0,0.000417,15]
[340984864,1730212232937,-1745.3743,0.00041709,2]
[340984865,1730212232946,-150.0,0.00041761,2]
[340984866,1730212232955,-1600.0,0.000418,15]
[340984867,1730212232972,-193.0841,0.0004185,2]
[340984868,1730212232981,-5000.0,0.0004188,2]
[340984869,1730212232991,-964.0083,0.00041899,2]
[340984870,1730212233000,-2000.0,0.000419,15]
[340984871,1730212233010,-2500.0,0.00041961,2]
[340984872,1730212233019,-199.73395633,0.0004199,2]
[340984873,1730212233029,-986.61734434,0.00041999,120]
[340984874,1730212233038,-98655.14755289,0.00042,30]
[340984875,1730212233072,-556.26670477,0.00042,30]
[340984876,1730212233131,-4189.60831014,0.00042,30]
[340984877,1730212233143,-651.275,0.00042,30]
[340984879,1730212237980,-1000.0,0.00040851,15]
[340984880,1730212237990,-3163.83254525,0.00042,30]
[340984881,1730212238261,-920.91309729,0.00042,30]
[340984895,1730212239942,-787.99989949,0.00042,30]
[340984896,1730212239954,-141074.95689017,0.00042,30]
[340984898,1730212239963,-10000.0,0.00042,2]
[340984900,1730212239978,-7012.3852,0.000421,2]
[340984902,1730212239988,-6782.513,0.000421,2]
[340984904,1730212239998,-424.6858336,0.00042119,2]
[340984906,1730212240007,-150.0,0.00042177,2]
[340984908,1730212240016,-1115.8351515,0.000422,2]
[340984909,1730212240028,-326.93,0.000422,2]
[340984910,1730212240139,-263.12,0.00041059,2]
[340984911,1730212240244,-540.76,0.00041059,2]
[340984912,1730212240272,-196.12,0.00041059,2]
[340984913,1730212240282,-1089.90586793,0.000422,2]
[340984916,1730212242960,-1000.0,0.000412,2]
[340984917,1730212242970,-1128.36992518,0.000422,2]
[340984918,1730212242982,-424.33789475,0.000422,2]
[340984919,1730212242994,-1424.4705241,0.000422,2]
[340984920,1730212243007,-2104.2174818,0.000422,2]
[340984921,1730212243084,-2148.78,0.000422,2]
[340984922,1730212243097,-16438.09825474,0.000422,2]
[340984923,1730212243107,-60733.8305,0.000422,2]
[340984924,1730212243116,-48380.82448653,0.000422,2]
[340984925,1730212243292,-6418.51791347,0.000422,2]
[340984926,1730212243304,-7928.55130097,0.000422,2]
[340984962,1730212245904,-3184.0,0.000417,5]
[340984964,1730212245914,-3251.09,0.000422,2]
[340984990,1730212246183,-322.2379923,0.000422,2]
[340985881,1730212262111,-150.0,0.00015668,2]
[340985883,1730212415574,6039.16,0.00039,30]
[340985884,1730212592579,1250.0,0.00038356,30]
[340985885,1730212592903,2500.0,0.0003863,30]
[340985886,1730212593206,293.47,0.00038904,30]
[340985887,1730212711361,715.679,0.00035819,43]
[340985888,1730212804833,301.77,0.00036,60]
[340985889,1730212926230,-1000.0,0.00015242,2]
[340985890,1730212926942,-299.23607413,0.00015242,2]
[340985891,1730213048185,203.9,0.00039,30]
[340985911,1730213178687,250.0,0.00038966,120]
[340985962,1730213432194,-252.50891884,0.00015242,2]
[340985963,1730213432205,-6362.20011971,0.00015242,2]
[340985964,1730213432215,-218.38141382,0.00015242,2]
[340985965,1730213432225,-155.15,0.00015342,2]
[340985966,1730213432234,-161.71,0.00015342,2]
[340985967,1730213432244,-157.64,0.00015342,2]
[340985968,1730213432253,-573.2655905,0.000172,2]
[340985969,1730213432263,-17396.83781554,0.000172,2]
[340985970,1730213432272,-246.0,0.000288,3]
[340985971,1730213432281,-210.81075,0.00029953,2]
[340985972,1730213432291,-267.922,0.00031833,2]
[340985973,1730213432300,-5514.23,0.00031833,2]
[340985974,1730213432310,-382.97,0.00035,14]
[340985975,1730213432320,-155.15,0.00035616,2]
[340985976,1730213432330,-442.14,0.00037207,2]
[340985977,1730213432340,-210.81075,0.00038092,2]
[340985978,1730213432351,-250.0,0.0003869,2]
[340985979,1730213432360,-427.22,0.00038716,2]
[340985980,1730213432370,-250.0,0.00038838,2]
[340985981,1730213432379,-1140.26,0.00038874,2]
[340985982,1730213432389,-160.0,0.00038888,2]
[340985983,1730213432399,-427.51,0.00038969,2]
[340985984,1730213432410,-150.0,0.00038984,7]
[340985985,1730213432419,-294.5050591,0.00039026,2]
[340985986,1730213432431,-1071.1449409,0.00039026,2]
[340985987,1730213432440,-172.52,0.00039057,120]
[340985988,1730213432450,-138.66724146,0.0003906,2]
[340985989,1730213432462,-61.33275854,0.0003906,2]
[340985990,1730213432471,-157.82,0.00039077,2]
[340985991,1730213432480,-2437.9,0.00039085,2]
[340985992,1730213432489,-126.9883598,0.00039088,7]
[340985996,1730213432517,-471.9490602,0.00039088,7]
[340985998,1730213432527,-162.9463848,0.00039229,2]
[340986000,1730213432538,-408.0536152,0.00039229,2]
[340986002,1730213432547,-1598.55,0.00039229,2]
[340986004,1730213432556,-181.99,0.00039282,2]
[340986006,1730213432567,-598.93742,0.00039288,7]
[340986018,1730213432687,-200.0,0.00039325,2]
[340986020,1730213432697,-4204.0690777,0.00039344,2]
[340986023,1730213432708,-3408.75,0.00039344,2]
[340986267,1730213438687,-365.7414,0.00039344,2]
[340986271,1730213440622,-7811.1171683,0.00039344,2]
[340986272,1730213440636,-7448.73383044,0.00039344,2]
[340986273,1730213440647,-661.58852356,0.00039344,2]
[340986274,1730213440664,-154.22,0.00039468,120]
[340986275,1730213440674,-442.14,0.00039471,2]
[340986276,1730213440683,-2500.0,0.00039473,2]
[340986277,1730213440693,-598.93742,0.00039488,7]
[340986278,1730213440703,-267.922,0.00039573,2]
[340986279,1730213440712,-598.93742,0.00039688,7]
[340986280,1730213440722,-872.0,0.00039831,2]
[340986281,1730213440731,-313.97,0.00039889,2]
[340986282,1730213440741,-598.93742,0.00040088,7]
[340986283,1730213440750,-598.93742,0.00040288,7]
[340986284,1730213440760,-598.93742,0.00040488,7]
[340986285,1730213440770,-598.93742,0.00040688,7]
[340986286,1730213440779,-151.0,0.00041,120]
[340986287,1730213440789,-2524.19,0.00041031,2]
[340986288,1730213440798,-150.0,0.00041096,2]
[340986289,1730213440807,-106.90624303,0.000411,2]
[340986290,1730213440819,-78.22488058,0.000411,2]
[340986291,1730213440828,-5187.7751194,0.00041146,2]
[340986292,1730213440983,-3679.6848806,0.00041146,2]
[340986293,1730213440993,-3251.24,0.00041182,2]
[340986294,1730213441003,-150.0,0.0004123,2]
[340986295,1730213441013,-5386.97982705,0.00041272,2]
[340986302,1730213443396,-1007.97327295,0.00041272,2]
[340986303,1730213443406,-2013.3819,0.00041272,2]
[340986304,1730213443416,-150.0,0.0004135,2]
[340986305,1730213443425,-8086.3739768,0.00041565,2]
[340986306,1730213443440,-551.24999974,0.00041565,2]
[340986307,1730213443451,-460.5356771,0.00041565,2]
[340986308,1730213443676,-486.92219508,0.00041565,2]
[340986326,1730213446105,-13471.09962182,0.00041565,2]
[340986333,1730213446271,-1075.001684,0.00041565,2]
[340986334,1730213446331,-868.81684546,0.00041565,2]
[340986335,1730213446341,-300.0,0.000416,15]
[340986336,1730213446351,-700.0,0.000417,15]
[340986337,1730213446362,-5000.0,0.00041714,2]
[340986338,1730213446371,-442.14,0.00041735,2]
[340986339,1730213446383,-1100.0,0.000418,15]
[340986340,1730213446392,-313.97,0.00041883,2]
[340986341,1730213446402,-1500.0,0.000419,15]
[340986342,1730213446417,-369.26,0.00041982,2]
[340986343,1730213446426,-2052.0,0.00042,60]
[340986344,1730213446436,-516.4921532,0.00042,120]
[340986345,1730213446446,-195.93293664,0.00042,15]
[340986346,1730213446456,-1000.0,0.00042,2]
[340986347,1730213446466,-3561.057,0.00042,2]
[340986348,1730213446475,-300.0,0.00042,3]
[340986349,1730213446484,-2500.0,0.00042,2]
[340986350,1730213446494,-398.3782,0.000421,2]
[340986351,1730213446504,-2223.1312,0.000421,2]
[340986352,1730213446513,-123191.7408,0.000421,2]
[340986353,1730213446523,-17361.19730373,0.000421,2]
[340986354,1730214115878,150.0,0.00015027,2]
[340986355,1730214115904,51.06191628,0.00015027,2]
[340986356,1730214308655,4726.6836791,0.0003,30]
[340986366,1730214623643,164.62948348,0.00039,30]
[340986379,1730214632270,-403.87586623,0.0001726,2]
[340986381,1730214632280,-205.6,0.00017589,2]
[340986383,1730214632290,-187.2385,0.00029713,2]
[340986385,1730214632300,-267.92175,0.00031415,2]
[340986388,1730214632412,-483.99,0.00036935,2]
[340986389,1730214632425,-187.2385,0.00037904,2]
[340986390,1730214632436,-983.12369921,0.0003822,5]
[340986391,1730214632459,-16.89182726,0.0003822,5]
[340986392,1730214632468,-374.47725,0.00038384,2]
[340986393,1730214632479,-774.37,0.00038471,2]
[340986394,1730214632488,-1032.28374484,0.00038471,2]
[340986395,1730214632498,-1306.2,0.00038471,2]
[340986396,1730214632509,-250.0,0.00038853,2]
[340986397,1730214632519,-683.42,0.00038853,2]
[340986398,1730214632529,-157.82,0.00038853,2]
[340986399,1730214632539,-483.99,0.00039199,2]
[340986400,1730214632549,-267.92175,0.00039244,2]
[340986401,1730214632559,-23900.0,0.00040004,2]
[340986402,1730214632568,-250.0,0.00040102,2]
[340986403,1730214632578,-250.0,0.00040125,120]
[340986404,1730214632587,-150.0,0.00040136,7]
[340986405,1730214632596,-1113.94,0.00040235,2]
[340986406,1730214632606,-160.0,0.00040316,2]
[340986407,1730214632616,-200.0,0.0004032,2]
[340986408,1730214632627,-160.57,0.00040367,2]
[340986409,1730214632636,-154.22,0.00040511,120]
[340986410,1730214632646,-157.53,0.00040539,2]
[340986411,1730214632655,-157.53,0.0004059,2]
[340986413,1730214632665,-178.18,0.00040632,120]
[340986415,1730214632674,-157.53,0.00040641,2]
[340986417,1730214632684,-157.53,0.00040692,2]
[340986419,1730214632693,-539.0,0.00040742,120]
[340986421,1730214632703,-157.53,0.00040742,2]
[340986423,1730214632716,-150.0,0.00041061,2]
[340986426,1730214632725,-452.38,0.0004107,2]
[340986429,1730214632735,-150.0,0.00041096,2]
[340986432,1730214632744,-464.54194798,0.000411,2]